bitfinex-derivatives/quotes_ETHF0:USTF0_20250220
["timestamp","ask_amount","ask_price","bid_price","bid_amount"]
[1740044203401,0.73218,2731.5,2731.3,1.83182]
[1740044203609,0.73218,2731.5,2731.4,0.73221]
[1740044204099,0.73221,2731.4,2731.3,1.0996]
[1740044204298,0.73218,2731.5,2731.4,0.7322]
[1740044204706,0.73218,2731.5,2731.3,1.83182]
[1740044205708,3.2078,2731.6,2731.3,1.83182]
[1740044205909,0.73221,2731.4,2731.3,1.0996]
[1740044206103,0.73221,2731.4,2731.3,1.83183]
[1740044206706,0.73221,2731.4,2731.3,1.0996]
[1740044207108,1.30591,2731.4,2731.3,1.0996]
[1740044207298,1.30591,2731.4,2731.3,1.83183]
[1740044207706,0.5737,2731.4,2731.3,1.83183]
[1740044207905,1.30591,2731.4,2731.3,1.83183]
[1740044210309,0.5737,2731.4,2731.3,1.83183]
[1740044211114,1.30591,2731.4,2731.3,1.83183]
[1740044211914,0.5737,2731.4,2731.3,1.83183]
[1740044212415,1.30591,2731.4,2731.3,1.83183]
[1740044213617,0.5737,2731.4,2731.3,1.83183]
[1740044213818,1.30591,2731.4,2731.3,1.83183]
[1740044216122,1.30591,2731.4,2731.3,1.0996]
[1740044217423,1.30591,2731.4,2731.3,1.83183]
[1740044217725,1.30591,2731.4,2731.3,1.0996]
[1740044218321,0.5737,2731.4,2731.2,3.59735]
[1740044218535,0.5405,2731.3,2731.2,3.59735]
[1740044220632,1.30592,2731.4,2731.2,2.8651]
[1740044220834,1.30592,2731.4,2731.3,0.73223]
[1740044221131,0.5737,2731.4,2731.2,2.8651]
[1740044221637,0.73223,2731.3,2731.2,3.59734]
[1740044221821,0.5737,2731.4,2731.2,2.8651]
[1740044222224,1.30592,2731.4,2731.3,0.73223]
[1740044223330,0.5737,2731.4,2731.2,2.8651]
[1740044223524,0.73223,2731.3,2731.2,3.59735]
[1740044223930,1.30003,2731.3,2731.2,3.59735]
[1740044224433,1.30003,2731.3,2731.2,2.8651]
[1740044224637,1.30003,2731.3,2731.2,3.59736]
[1740044225137,0.5678,2731.3,2731.0,3.4524]
[1740044225328,3.2078,2731.2,2730.7,0.737873]
[1740044225525,0.73236,2730.9,2730.7,3.613673]
[1740044225726,0.5876,2730.8,2730.7,3.613673]
[1740044225933,0.5876,2730.8,2730.7,2.881293]
[1740044226140,1.31997,2730.8,2730.7,2.881293]
[1740044226530,1.31997,2730.8,2730.7,0.005493]
[1740044227139,1.85717,2730.8,2730.7,0.005493]
[1740044227640,0.73249,2730.4,2730.2,6.6494]
[1740044227838,0.546,2730.3,2730.2,6.6494]
[1740044228339,1.0932,2730.3,2730.2,6.6494]
[1740044228738,1.8257,2730.3,2730.0,0.005493]
[1740044228934,0.73255,2730.1,2730.0,0.005493]
[1740044229633,0.73254,2730.2,2730.0,0.005493]
[1740044229838,0.73255,2730.2,2730.0,0.005493]
[1740044230837,5.57072,2730.3,2730.0,0.738063]
[1740044231237,4.8382,2730.3,2730.0,0.738063]
[1740044231438,5.57072,2730.3,2730.0,0.738063]
[1740044231642,5.57071,2730.3,2730.0,0.738063]
[1740044231838,4.8382,2730.3,2730.0,0.005493]
[1740044232037,5.57072,2730.3,2730.0,0.738063]
[1740044232643,0.73253,2730.2,2730.0,0.738063]
[1740044232948,4.8382,2730.3,2730.0,0.738063]
[1740044233247,5.57072,2730.3,2730.0,0.738063]
[1740044234049,5.57072,2730.3,2730.0,0.738053]
[1740044234447,4.8382,2730.3,2730.0,0.738053]
[1740044234749,5.57073,2730.3,2730.0,0.738053]
[1740044235348,5.57073,2730.3,2730.0,0.005493]
[1740044235554,5.57073,2730.3,2730.1,0.73255]
[1740044236048,5.57072,2730.3,2730.1,0.73254]
[1740044236249,4.301,2730.3,2730.1,0.73255]
[1740044236550,4.301,2730.3,2730.2,0.5525]
[1740044237051,5.03352,2730.3,2730.2,0.5525]
[1740044237244,4.301,2730.3,2730.2,1.28503]
[1740044237446,0.005493,2730.5,2730.4,0.73247]
[1740044237647,0.591693,2730.5,2730.4,0.73247]
[1740044238052,1.324143,2730.5,2730.4,0.73247]
[1740044238351,1.324143,2730.5,2730.3,1.31668]
[1740044238547,1.324143,2730.5,2730.3,0.5842]
[1740044238851,1.324153,2730.5,2730.3,1.31669]
[1740044239052,0.591693,2730.5,2730.4,0.73247]
[1740044239253,1.324143,2730.5,2730.3,0.5842]
[1740044239445,1.324143,2730.5,2730.3,1.31669]
[1740044239646,0.591693,2730.5,2730.3,0.5842]
[1740044240040,0.591693,2730.5,2730.4,0.73247]
[1740044240241,0.73247,2730.4,2730.3,0.5842]
[1740044241152,0.73252,2730.3,2730.1,3.05454]
[1740044241345,0.59,2730.2,2730.1,0.73254]
[1740044241551,1.32253,2730.2,2730.1,0.73254]
[1740044241752,0.59,2730.2,2730.1,0.73254]
[1740044242455,1.32253,2730.2,2730.1,0.73254]
[1740044242660,0.59,2730.2,2730.1,0.73254]
[1740044243250,0.73249,2730.4,2730.0,0.590393]
[1740044243450,1.885653,2730.5,2730.3,0.7325]
[1740044243658,1.153193,2730.5,2730.0,0.590393]
[1740044243955,0.7325,2730.4,2730.2,0.73251]
[1740044244156,0.7325,2730.3,2730.2,0.73251]
[1740044244352,0.7325,2730.3,2730.0,0.590393]
[1740044244553,0.7325,2730.3,2730.2,0.73253]
[1740044245059,1.153193,2730.5,2730.0,0.590393]
[1740044245257,0.7325,2730.3,2730.0,0.590393]
[1740044245761,0.7325,2730.3,2730.1,0.73254]
[1740044246256,0.7325,2730.3,2730.2,0.73253]
[1740044246555,3.2078,2730.4,2730.2,0.73253]
[1740044246858,0.7325,2730.3,2730.2,0.73253]
[1740044247260,0.7325,2730.3,2730.0,0.590393]
[1740044247461,0.7325,2730.3,2730.2,0.73253]
[1740044248262,3.2078,2730.4,2730.2,0.73253]
[1740044248463,0.73252,2730.3,2730.1,0.73253]
[1740044248666,0.73252,2730.3,2730.1,0.73255]
[1740044248866,0.73252,2730.3,2730.2,0.73253]
[1740044249563,3.2078,2730.4,2730.1,0.73254]
[1740044249857,0.73253,2730.2,2730.0,0.590393]
[1740044250063,0.73253,2730.2,2730.1,0.73256]
[1740044250663,0.73253,2730.2,2730.0,1.322953]
[1740044252562,3.2078,2730.4,2730.0,1.322953]
[1740044254077,0.73255,2730.2,2730.0,1.322953]
[1740044254367,3.2078,2730.4,2730.0,1.322953]
[1740044254567,0.73256,2730.1,2730.0,1.322953]
[1740044256362,0.73256,2730.1,2730.0,0.005493]
[1740044257764,3.94036,2730.1,2730.0,0.005493]
[1740044258269,1.83154,2730.0,2729.3,0.73277]
[1740044258461,3.2078,2729.6,2729.3,0.73277]
[1740044258669,3.94051,2729.6,2729.1,2.323]
[1740044258869,0.73274,2729.5,2729.2,0.73278]
[1740044259172,0.73276,2729.4,2729.2,0.73278]
[1740044259373,1.85133,2729.5,2729.2,0.73278]
[1740044259573,1.85133,2729.5,2729.3,0.73276]
[1740044259771,1.1186,2729.5,2729.1,2.40177723]
[1740044260069,1.1186,2729.5,2729.3,0.73276]
[1740044260270,1.1186,2729.5,2729.4,0.73275]
[1740044260673,1.1186,2729.5,2729.1,2.40177723]
[1740044261263,0.73281,2729.2,2729.1,0.07877723]
[1740044262074,3.94058,2729.3,2729.1,0.07877723]
[1740044263165,3.2078,2729.3,2729.1,0.07877723]
[1740044263370,3.94059,2729.3,2729.1,0.07877723]
[1740044264075,3.94059,2729.3,2729.1,0.81159723]
[1740044264471,3.2078,2729.3,2729.1,0.81159723]
[1740044264876,3.94058,2729.3,2729.1,0.81159723]
[1740044265073,3.2078,2729.3,2729.1,0.07877723]
[1740044265270,3.2078,2729.3,2729.2,0.7328]
[1740044265575,3.94057,2729.3,2729.2,0.5368]
[1740044266574,3.2078,2729.3,2729.2,0.5368]
[1740044266778,3.94057,2729.3,2729.2,0.5368]
[1740044267073,3.2078,2729.3,2729.2,0.5368]
[1740044267277,3.94057,2729.3,2729.2,0.5368]
[1740044269178,3.2078,2729.3,2729.1,0.07877723]
[1740044269372,0.7328,2729.2,2729.1,0.81159723]
[1740044269781,3.2078,2729.3,2729.1,0.81159723]
[1740044269979,3.94059,2729.3,2729.1,0.81159723]
[1740044270476,3.2078,2729.3,2729.1,0.07877723]
[1740044270872,3.94057,2729.3,2729.2,0.5583]
[1740044272784,3.2078,2729.3,2729.1,0.07877723]
[1740044273082,0.7328,2729.2,2729.1,0.07877723]
[1740044282487,0.7328,2729.2,2729.1,0.61347723]
[1740044283485,3.94061,2729.3,2729.2,0.73283]
[1740044283798,0.73283,2729.2,2729.1,1.34632723]
[1740044284187,3.2078,2729.3,2729.2,0.73283]
[1740044284391,3.2078,2729.6,2729.1,0.61347723]
[1740044284594,3.2078,2729.6,2729.5,0.73274]
[1740044285586,3.2078,2730.0,2729.2,7.43711154]
[1740044285892,3.2078,2730.0,2729.9,0.73264]
[1740044286487,3.2078,2730.0,2729.9,1.29724]
[1740044286889,3.2078,2730.0,2729.9,0.5646]
[1740044287094,3.94041,2730.0,2729.9,0.5646]
[1740044287404,3.94041,2730.0,2729.9,2.323]
[1740044287694,3.2078,2730.0,2729.6,0.5698]
[1740044287997,3.94049,2729.7,2729.6,0.5698]
[1740044288491,3.2078,2729.7,2729.6,1.30252]
[1740044288689,3.94049,2729.7,2729.6,0.5698]
[1740044289595,3.2078,2729.7,2729.6,0.5698]
[1740044289996,3.2078,2729.7,2729.6,1.30252]
[1740044290490,3.2078,2729.7,2729.6,1.3757908]
[1740044292697,3.94041,2730.0,2729.9,0.73263]
[1740044293000,3.2078,2730.0,2729.9,0.73263]
[1740044294400,3.94041,2730.0,2729.9,0.73263]
[1740044294699,3.2078,2730.0,2729.9,0.73263]
[1740044294895,3.2078,2730.0,2729.8,0.73264]
[1740044295299,0.73266,2729.9,2729.7,0.73268]
[1740044296206,1.30006,2729.9,2729.7,0.73268]
[1740044296700,1.30006,2729.9,2729.8,0.73267]
[1740044296896,1.30006,2729.9,2729.6,0.6430708]
[1740044297100,1.30006,2729.9,2729.8,0.73267]
[1740044299015,0.73267,2729.8,2729.7,1.82399]
[1740044299316,1.30005,2729.9,2729.8,0.73267]
[1740044299614,1.30005,2729.9,2729.7,1.0913]
[1740044299809,0.5674,2729.9,2729.7,1.0913]
[1740044300116,0.73267,2729.8,2729.7,1.82398]
[1740044300709,0.5674,2729.9,2729.6,0.6430708]
[1740044300910,1.85819,2729.8,2729.7,0.7327]
[1740044301615,1.1255,2729.8,2729.6,2.9660708]
[1740044301815,0.7327,2729.7,2729.6,3.6987808]
[1740044302017,0.7327,2729.7,2729.6,0.6430708]
[1740044302216,3.9405,2729.7,2729.6,0.0732708]
[1740044304809,3.2078,2729.7,2729.6,0.0732708]
[1740044305010,3.2078,2729.7,2729.6,0.8059908]
[1740044306218,3.9405,2729.7,2729.6,0.0732708]
[1740044307213,3.2078,2729.7,2729.6,0.6578708]
[1740044307522,3.2078,2729.7,2729.6,1.2133708]
[1740044307523,3.94047,2729.7,2729.6,1.2133708]
[1740044308018,3.2078,2729.7,2729.6,1.2133708]
[1740044308218,3.2078,2729.7,2729.6,1.9460708]
[1740044308418,3.2078,2729.7,2729.6,1.2133708]
[1740044308819,3.94048,2729.7,2729.6,1.2133708]
[1740044309014,3.2078,2729.7,2729.6,3.5433708]
[1740044309421,3.94048,2729.7,2729.6,3.5433708]
[1740044309721,3.94048,2729.7,2729.6,4.1029708]
[1740044309915,3.2078,2729.7,2729.6,4.1029708]
[1740044310621,3.94048,2729.7,2729.6,4.1029708]
[1740044311015,3.2078,2729.7,2729.6,4.1029708]
[1740044311420,3.94046,2729.7,2729.6,4.1029708]
[1740044311620,3.94046,2729.7,2729.6,2.4032708]
[1740044315123,3.94046,2729.7,2729.6,0.0732708]
[1740044315620,3.2078,2729.7,2729.6,0.0732708]
[1740044315820,0.5674,2729.9,2729.6,0.0732708]
[1740044316016,1.30002,2729.9,2729.7,1.85874]
[1740044316216,1.30001,2729.9,2729.8,2.332]
[1740044316516,0.73264,2729.8,2729.7,0.5641]
[1740044316818,0.73264,2729.8,2729.7,2.332]
[1740044317013,0.5674,2729.9,2729.6,0.0732708]
[1740044317014,0.73266,2729.7,2729.6,0.0732708]
[1740044317523,3.94046,2729.7,2729.6,0.0732708]
[1740044318120,0.7328,2729.2,2729.1,0.005493]
[1740044321226,1.3153,2729.2,2729.1,0.005493]
[1740044329832,8.9165,2729.2,2727.9,2.975]
[1740044330131,3.94083,2728.5,2728.2,1.88908]
[1740044331230,3.2078,2728.5,2728.2,1.156]
[1740044331431,3.2078,2728.5,2728.3,1.28224]
[1740044331623,3.94082,2728.5,2728.3,1.28224]
[1740044331827,3.2078,2728.5,2728.4,0.73304]
[1740044332736,3.94079,2728.5,2728.3,1.28223]
[1740044333029,3.2078,2728.5,2728.3,1.28223]
[1740044333229,3.94079,2728.5,2728.3,1.28223]
[1740044335532,0.73299,2728.5,2728.3,1.28223]
[1740044335931,3.94079,2728.5,2728.3,1.28223]
[1740044336432,3.2078,2728.5,2728.3,0.5492]
[1740044336734,0.73301,2728.4,2728.3,0.5492]
[1740044337128,3.7779,2728.5,2728.3,0.5492]
[1740044337336,3.7779,2728.5,2728.4,0.73301]
[1740044337735,3.2078,2728.5,2728.4,0.73301]
[1740044339236,0.738433,2728.7,2728.3,3.757]
[1740044339530,0.738423,2728.7,2728.5,0.73296]
[1740044339731,0.005493,2728.7,2728.6,0.73296]
[1740044345439,0.005493,2728.7,2728.6,3.06596]
[1740044350143,0.005493,2728.7,2728.6,6.27376]
[1740044354849,0.005493,2728.7,2728.6,3.06596]
[1740044355148,0.005493,2728.7,2728.6,6.27376]
[1740044359857,0.738423,2728.7,2728.6,6.26876]
[1740044360551,0.738423,2728.7,2728.6,5.5358]
[1740044360753,0.738423,2728.7,2728.6,6.26876]
[1740044361050,0.73298,2728.5,2728.4,2.328]
[1740044361459,0.73306,2728.2,2728.1,0.005493]
[1740044361752,0.73306,2728.2,2728.1,2.336493]
[1740044362248,0.73305,2728.3,2728.2,0.73306]
[1740044362455,1.7193,2728.6,2728.1,3.644573]
[1740044363053,0.73306,2728.3,2728.1,3.644573]
[1740044363255,0.73306,2728.2,2728.1,2.911493]
[1740044363448,0.73306,2728.2,2728.1,3.644583]
[1740044363654,1.7193,2728.6,2728.1,3.644583]
[1740044363958,0.73305,2728.3,2728.1,3.644573]
[1740044364149,0.73305,2728.3,2728.1,2.911493]
[1740044364354,0.73302,2728.4,2728.2,0.5757]
[1740044364655,0.73301,2728.4,2728.2,1.1131]
[1740044364859,0.73304,2728.3,2728.2,1.84616]
[1740044365157,1.7193,2728.6,2728.2,1.84616]
[1740044365558,0.73304,2728.3,2728.2,1.1131]
[1740044365953,1.7193,2728.6,2728.2,1.1131]
[1740044366154,1.7193,2728.6,2728.2,1.84615]
[1740044367253,1.7193,2728.6,2728.2,1.1131]
[1740044367558,0.73304,2728.3,2728.2,1.1131]
[1740044369149,0.73304,2728.3,2728.2,1.84616]
[1740044369756,0.73304,2728.3,2728.2,0.5757]
[1740044370062,0.73306,2728.2,2728.1,6.852363]
[1740044370258,1.83816,2728.2,2728.1,6.852363]
[1740044370561,1.83816,2728.2,2728.1,6.119293]
[1740044370858,1.83816,2728.2,2728.1,3.213293]
[1740044373352,1.83816,2728.2,2728.1,0.005493]
[1740044377155,9.4341,2728.2,2727.3,3.2078]
[1740044377357,0.73328,2727.4,2727.3,3.2078]
[1740044377566,3.2078,2727.7,2727.3,3.2078]
[1740044377753,1.1381,2727.6,2727.3,3.2078]
[1740044378664,1.1381,2727.6,2727.5,0.73325]
[1740044379059,1.87134,2727.6,2727.3,3.9411]
[1740044379560,1.87134,2727.6,2727.3,3.94108]
[1740044379765,1.87134,2727.6,2727.3,3.2078]
[1740044379966,1.87134,2727.6,2727.3,3.94109]
[1740044380167,0.73326,2727.5,2727.3,3.2078]
[1740044380465,1.27536,2727.5,2727.3,3.94111]
[1740044380659,1.27537,2727.5,2727.3,3.2078]
[1740044380858,0.5421,2727.5,2727.3,3.2078]
[1740044381366,0.73328,2727.4,2727.3,3.2078]
[1740044381665,0.5421,2727.5,2727.3,3.2078]
[1740044381666,1.27537,2727.5,2727.3,3.2078]
[1740044382166,0.5421,2727.5,2727.3,3.2078]
[1740044382363,1.27536,2727.5,2727.3,3.2078]
[1740044382562,3.2078,2727.4,2726.9,0.577]
[1740044382863,0.73335,2727.2,2726.9,1.3104]
[1740044383063,3.2078,2727.4,2726.7,3.2078]
[1740044383064,0.73342,2726.9,2726.7,3.2078]
[1740044383257,0.7334,2727.0,2726.7,3.94125]
[1740044383562,1.1288,2727.1,2726.7,3.2078]
[1740044383766,0.738803,2727.3,2726.7,3.2078]
[1740044383965,0.005493,2727.3,2727.1,0.73335]
[1740044384266,0.005493,2727.3,2727.2,1.7269]
[1740044385466,0.005493,2727.3,2727.2,2.46023]
[1740044385962,0.005493,2727.3,2727.2,1.7269]
[1740044386269,3.2078,2727.7,2727.2,1.7269]
[1740044386270,3.2078,2728.0,2727.2,4.0689]
[1740044386466,0.73325,2727.5,2727.4,3.2078]
[1740044386763,0.5487,2727.8,2727.4,3.2078]
[1740044386967,0.73325,2727.5,2727.4,3.2078]
[1740044392769,0.73325,2727.5,2727.4,3.94108]
[1740044393062,0.73325,2727.5,2727.4,3.2078]
[1740044393968,1.26975,2727.6,2727.4,3.2078]
[1740044394161,0.73325,2727.5,2727.4,3.2078]
[1740044396762,0.5365,2727.6,2727.4,3.2078]
[1740044396961,0.73325,2727.5,2727.4,3.2078]
[1740044397773,0.5365,2727.6,2727.4,3.2078]
[1740044397968,1.26974,2727.6,2727.4,3.94107]
[1740044398467,1.26974,2727.6,2727.4,3.2078]
[1740044398668,1.26974,2727.6,2727.4,3.94106]
[1740044398859,1.26975,2727.6,2727.4,3.94106]
[1740044399063,0.73325,2727.5,2727.4,3.94106]
[1740044399262,0.5365,2727.6,2727.4,3.2078]
[1740044399568,0.73323,2727.6,2727.5,0.73325]
[1740044399765,0.005493,2727.7,2727.6,0.73323]
[1740044400463,0.005493,2727.7,2727.6,1.27523]
[1740044401865,0.7331,2728.1,2728.0,0.7331]
[1740044402064,0.7331,2728.1,2728.0,3.9409]
[1740044402863,0.7331,2728.1,2728.0,3.2078]
[1740044403269,0.73312,2728.0,2727.9,0.73314]
[1740044403575,0.73311,2728.1,2727.9,0.73314]
[1740044404171,1.1508,2728.2,2728.0,0.73312]
[1740044404366,1.88389,2728.2,2728.0,0.73312]
[1740044404566,0.73314,2728.0,2727.8,1.28746]
[1740044404968,0.73314,2728.0,2727.8,0.5543]
[1740044405168,0.73314,2728.0,2727.9,0.73315]
[1740044405566,0.73314,2728.0,2727.8,0.5543]
[1740044405872,0.7331,2728.1,2728.0,0.73312]
[1740044406072,1.1508,2728.2,2728.0,0.73312]
[1740044406274,1.88389,2728.2,2728.0,0.7331]
[1740044406475,1.88389,2728.2,2727.8,0.5543]
[1740044406769,1.1508,2728.2,2727.8,0.5543]
[1740044406967,0.73311,2728.1,2727.9,0.73314]
[1740044407167,1.1508,2728.2,2727.8,0.5543]
[1740044407363,0.73313,2728.0,2727.8,1.28745]
[1740044407563,1.1508,2728.2,2727.8,0.5543]
[1740044407774,0.73309,2728.1,2727.9,0.73314]
[1740044407977,0.73313,2728.0,2727.8,1.28745]
[1740044408375,0.7331,2728.1,2727.9,0.73313]
[1740044409480,1.1508,2728.2,2727.8,0.5543]
[1740044410077,0.7331,2728.1,2727.9,0.73313]
[1740044410676,0.73314,2728.0,2727.8,1.28746]
[1740044411075,0.73314,2728.0,2727.8,0.5543]
[1740044411381,0.73314,2728.0,2727.9,0.73315]
[1740044411677,1.1508,2728.2,2727.8,0.5543]
[1740044411877,0.73317,2727.8,2727.7,5.5508]
[1740044412468,1.1508,2728.2,2727.7,5.5508]
[1740044412668,1.1508,2728.2,2727.8,0.5377]
[1740044412869,0.73314,2728.0,2727.8,1.27086]
[1740044413071,0.73314,2728.0,2727.8,1.27087]
[1740044413577,0.73313,2728.0,2727.8,0.73316]
[1740044413781,0.7331,2728.1,2727.7,6.1409]
[1740044414077,0.73309,2728.1,2727.7,6.1409]
[1740044414377,1.1508,2728.2,2727.7,6.1409]
[1740044414575,1.1508,2728.2,2728.0,0.73311]
[1740044414576,0.73309,2728.1,2728.0,0.73311]
[1740044414772,0.5914,2728.2,2728.1,0.73309]
[1740044414978,0.560893,2728.3,2728.2,0.73306]
[1740044414979,0.005493,2728.3,2728.2,0.73306]
[1740044417279,0.559,2728.7,2728.2,0.0733084]
[1740044417578,3.2078,2728.9,2728.3,3.2078]
[1740044417777,3.2078,2728.9,2728.4,0.07330303]
[1740044417969,0.73283,2729.1,2728.8,3.94069]
[1740044418170,1.85101,2729.2,2728.9,1.27108]
[1740044418374,0.5386,2729.2,2729.0,0.73284]
[1740044418680,0.5386,2729.2,2728.9,2.8932]
[1740044418681,0.005493,2729.2,2728.9,2.8932]
[1740044418981,0.005493,2729.2,2729.0,0.561]
[1740044419183,0.005493,2729.2,2729.0,1.29385]
[1740044420176,0.005493,2729.2,2729.0,0.561]
[1740044420377,0.738303,2729.2,2729.0,0.561]
[1740044420572,0.005493,2729.2,2728.9,2.8932]
[1740044420878,0.73282,2729.1,2728.9,2.8932]
[1740044421078,0.5711,2729.0,2728.9,2.8932]
[1740044421276,0.5711,2729.0,2728.9,3.62608]
[1740044421480,0.005493,2729.2,2728.9,2.8932]
[1740044421774,0.005493,2729.2,2729.1,0.73282]
[1740044422176,0.005493,2729.2,2729.0,1.30324]
[1740044422369,0.005493,2729.2,2729.0,0.5704]
[1740044422581,0.005493,2729.2,2729.1,0.73282]
[1740044425785,0.582993,2729.2,2729.1,0.73282]
[1740044426683,1.315793,2729.2,2729.0,1.30322]
[1740044426983,0.582993,2729.2,2729.1,0.73282]
[1740044428185,0.582993,2729.2,2729.0,3.7782]
[1740044428386,0.582993,2729.2,2729.0,1.30325]
[1740044428592,1.315803,2729.2,2729.0,1.30325]
[1740044429086,1.315803,2729.2,2729.1,0.73282]
[1740044429488,1.315803,2729.2,2729.0,0.5704]
[1740044429691,0.582993,2729.2,2728.9,3.2078]
[1740044429890,0.73285,2729.0,2728.9,3.2078]
[1740044430094,0.73285,2729.0,2728.9,3.94068]
[1740044430788,1.315793,2729.2,2728.9,3.2078]
[1740044430988,1.315793,2729.2,2729.1,0.73282]
[1740044431887,0.582993,2729.2,2729.1,0.73282]
[1740044432493,1.315793,2729.2,2729.1,0.73282]
[1740044432793,0.582993,2729.2,2729.1,0.73282]
[1740044433384,0.582993,2729.2,2729.1,1.32082]
[1740044437099,0.582993,2729.2,2729.0,0.5756]
[1740044437396,0.73282,2729.1,2729.0,1.30844]
[1740044437599,1.315813,2729.2,2729.0,1.30844]
[1740044437790,0.582993,2729.2,2729.1,0.73282]
[1740044437990,1.315793,2729.2,2729.1,0.73282]
[1740044438186,0.582993,2729.2,2729.1,0.73282]
[1740044439697,0.582993,2729.2,2729.1,41.53282]
[1740044441600,0.73285,2729.0,2728.9,3.2078]
[1740044441800,0.73288,2728.9,2728.8,0.005493]
[1740044441998,5.05808,2728.9,2728.8,0.005493]
[1740044445801,5.05808,2728.9,2728.8,40.805493]
[1740044451110,0.005493,2729.2,2729.1,0.73282]
[1740044452008,0.005493,2729.2,2729.0,2.35]
[1740044452009,3.2078,2729.9,2729.0,2.35]
[1740044452202,1.32625,2729.8,2729.5,0.73271]
[1740044452404,1.32625,2729.8,2729.6,1.1392]
[1740044452710,0.73266,2729.7,2729.6,1.1392]
[1740044453801,0.73266,2729.7,2729.6,41.9392]
[1740044454003,0.73266,2729.7,2729.6,41.3672]
[1740044454505,0.73266,2729.7,2729.6,40.8]
[1740044464419,0.5936,2729.8,2729.3,0.5672]
[1740044464614,0.73274,2729.4,2729.3,0.5672]
[1740044465019,0.73274,2729.4,2729.3,41.3672]
[1740044465417,1.30024,2729.4,2729.3,40.8]
[1740044469227,0.5675,2729.4,2729.1,0.07328423]
[1740044469426,0.7328,2729.2,2729.1,0.07328423]
[1740044469721,0.7328,2729.2,2729.1,40.87328423]
[1740044470222,3.9406,2729.2,2729.1,40.87328423]
[1740044474330,4.5228,2729.2,2729.1,40.87328423]
[1740044474822,3.2078,2729.5,2729.1,40.87328423]
[1740044475020,3.788493,2729.9,2729.2,1.6744]
[1740044475226,0.7327,2729.6,2729.3,0.73277]
[1740044476235,0.73276,2729.4,2729.2,1.6744]
[1740044476535,0.73276,2729.4,2729.2,2.40719]
[1740044476832,0.7327,2729.6,2729.3,0.73276]
[1740044477229,0.5737,2729.7,2729.2,1.6744]
[1740044477431,3.213293,2729.9,2729.7,0.73265]
[1740044477731,3.945903,2729.9,2729.8,0.5434]
[1740044479332,0.005493,2729.9,2729.8,0.5434]
[1740044480122,0.738103,2729.9,2729.8,0.5434]
[1740044481132,0.005493,2729.9,2729.8,0.5434]
[1740044481328,0.005493,2729.9,2729.8,1.27603]
[1740044482340,0.005493,2729.9,2729.8,41.3434]
[1740044482735,0.005493,2729.9,2729.8,42.07603]
[1740044486836,0.5401,2730.5,2729.8,44.51529544]
[1740044487034,0.5401,2730.5,2729.9,0.07326275]
[1740044487035,1.1201,2730.5,2729.9,0.07326275]
[1740044487341,0.73257,2730.1,2729.9,4.01365275]
[1740044487638,0.73255,2730.2,2730.0,0.73258]
[1740044487833,0.73255,2730.2,2730.1,40.8]
[1740044489033,0.73258,2730.0,2729.9,0.07326275]
[1740044489639,0.73258,2730.0,2729.9,40.87326275]
[1740044499247,1.31987,2730.1,2729.9,40.87326275]
[1740044499446,0.5873,2730.1,2729.9,40.87326275]
[1740044499745,0.73258,2730.0,2729.9,40.87326275]
[1740044511053,0.73258,2730.0,2729.9,41.60587275]
[1740044511357,0.73258,2730.0,2729.9,40.87326275]
[1740044511858,0.73258,2730.0,2729.9,41.60587275]
[1740044513053,0.73258,2730.0,2729.9,40.87326275]
[1740044513255,0.73258,2730.0,2729.9,41.60587275]
[1740044513455,0.73258,2730.0,2729.9,40.87326275]
[1740044514555,0.73258,2730.0,2729.9,41.60587275]
[1740044514963,0.73258,2730.0,2729.9,41.89377274]
[1740044517559,0.73258,2730.0,2729.9,40.87326275]
[1740044517759,0.73258,2730.0,2729.9,0.07326275]
[1740044518063,0.73266,2729.7,2729.6,3.2078]
[1740044518255,0.73266,2729.7,2729.6,44.0078]
[1740044519460,0.73266,2729.7,2729.6,40.8]
[1740044520761,3.2078,2729.7,2729.2,4.3339]
[1740044520961,0.73277,2729.3,2729.2,4.3339]
[1740044521262,0.73277,2729.3,2729.2,44.0078]
[1740044521768,0.73277,2729.4,2729.2,44.0078]
[1740044521959,2.43117,2729.3,2729.2,44.0078]
[1740044523059,1.1283,2729.3,2729.2,44.0078]
[1740044523255,1.86107,2729.3,2729.2,44.0078]
[1740044528066,1.29527,2729.3,2729.2,44.0078]
[1740044528267,0.5625,2729.3,2729.2,44.7406]
[1740044528569,0.73272,2729.5,2729.3,0.73276]
[1740044528867,0.73272,2729.5,2729.4,1.1484]
[1740044533968,3.2078,2729.7,2729.4,1.1484]
[1740044534170,0.73272,2729.6,2729.5,0.5667]
[1740044535572,1.6905,2729.9,2729.5,0.5667]
[1740044536063,1.6905,2729.9,2729.5,1.29939]
[1740044536272,0.73266,2729.7,2729.5,1.29939]
[1740044536569,0.73268,2729.7,2729.5,1.29941]
[1740044536764,1.6905,2729.9,2729.5,0.5667]
[1740044536966,0.73268,2729.7,2729.5,1.29942]
[1740044537870,1.6905,2729.9,2729.5,0.5667]
[1740044538173,0.73269,2729.6,2729.5,0.5667]
[1740044538376,0.73269,2729.6,2729.5,1.29942]
[1740044540476,0.73269,2729.6,2729.5,0.5667]
[1740044540776,3.52205,2729.9,2729.4,1.1484]
[1740044541076,0.73272,2729.5,2729.4,1.1484]
[1740044542373,0.73272,2729.5,2729.4,0.581]
[1740044551088,1.6905,2729.9,2729.4,0.581]
[1740044551387,1.1547,2729.9,2729.4,0.581]
[1740044551585,1.1547,2729.9,2729.5,0.7327]